bitfinex/quotes_BTCUSD_20250316
["timestamp","ask_amount","ask_price","bid_price","bid_amount"]
[1742127242914,0.33695669,82804.0,82803.0,0.0061692]
[1742127243253,0.33695669,82804.0,82803.0,0.0001692]
[1742127243254,0.36159317,82804.0,82803.0,0.0001692]
[1742127243631,0.36159317,82804.0,82803.0,0.0011692]
[1742127244705,0.33695669,82804.0,82803.0,0.0031692]
[1742127244833,0.33695669,82804.0,82803.0,0.1831692]
[1742127246503,0.33695669,82804.0,82803.0,0.1856492]
[1742127246681,0.31802391,82804.0,82803.0,0.1806492]
[1742127246896,0.31802391,82804.0,82803.0,0.0556492]
[1742127247079,0.31802391,82804.0,82803.0,0.0056492]
[1742127249243,0.31802391,82804.0,82803.0,0.0556492]
[1742127249810,0.31802391,82804.0,82803.0,0.0056492]
[1742127251594,0.31802391,82804.0,82803.0,2e-07]
[1742127251595,0.51907362,82804.0,82803.0,2e-07]
[1742127251799,0.05951785,82799.0,82798.0,4e-07]
[1742127251970,0.74894585,82799.0,82798.0,4e-07]
[1742127252179,0.87408084,82799.0,82798.0,4e-07]
[1742127253044,0.75450581,82799.0,82798.0,4e-07]
[1742127253580,0.70706496,82799.0,82798.0,4e-07]
[1742127254135,0.71006496,82799.0,82798.0,4e-07]
[1742127255514,0.71406496,82799.0,82798.0,4e-07]
[1742127255835,0.71006496,82799.0,82798.0,4e-07]
[1742127256032,0.70706496,82799.0,82798.0,4e-07]
[1742127256240,0.70906496,82799.0,82798.0,4e-07]
[1742127257368,0.71206496,82799.0,82798.0,4e-07]
[1742127258654,0.41206496,82799.0,82798.0,4e-07]
[1742127258837,0.41206496,82799.0,82798.0,0.1276004]
[1742127259028,0.56418496,82799.0,82798.0,0.1276004]
[1742127259230,0.01055996,82799.0,82798.0,0.1326004]
[1742127260598,0.0003384,82804.0,82803.0,0.38142042]
[1742127260897,0.0003384,82804.0,82803.0,0.385213]
[1742127262133,0.0003384,82804.0,82803.0,0.384213]
[1742127262676,0.0003384,82804.0,82803.0,0.389213]
[1742127262677,0.0013384,82804.0,82803.0,0.389213]
[1742127263686,0.0013384,82804.0,82803.0,0.86625352]
[1742127263894,0.0023384,82804.0,82803.0,0.87125352]
[1742127264502,0.0001692,82805.0,82804.0,0.067076]
[1742127264698,0.0001692,82805.0,82804.0,0.19378327]
[1742127265169,0.0001,82812.0,82811.0,0.192575]
[1742127265393,0.0001,82812.0,82811.0,0.43529524]
[1742127265629,0.0001,82812.0,82811.0,0.84868767]
[1742127265842,0.0001,82821.0,82820.0,0.434061]
[1742127266040,0.00022438,82821.0,82820.0,1.01100152]
[1742127267171,0.00022438,82821.0,82820.0,1.01700152]
[1742127267590,0.0001693,82829.0,82828.0,0.435037]
[1742127269350,0.0001693,82829.0,82828.0,0.45457785]
[1742127269584,0.0001693,82829.0,82828.0,0.44957785]
[1742127269979,0.0001693,82829.0,82828.0,0.45557785]
[1742127270591,0.0001693,82829.0,82828.0,0.46157785]
[1742127271230,0.0001693,82829.0,82828.0,0.87017752]
[1742127271434,0.0001693,82829.0,82828.0,0.87617752]
[1742127274617,0.0003386,82842.0,82841.0,0.434997]
[1742127274778,0.0003386,82842.0,82841.0,1.01181752]
[1742127275853,1.871e-05,82842.0,82841.0,1.01181752]
[1742127276075,1.871e-05,82842.0,82841.0,1.02741643]
[1742127276293,1.871e-05,82842.0,82841.0,1.03241643]
[1742127276468,1.871e-05,82842.0,82841.0,1.03641643]
[1742127276996,1.871e-05,82842.0,82841.0,1.03241643]
[1742127277196,1.871e-05,82842.0,82841.0,1.03841643]
[1742127279279,1.871e-05,82842.0,82841.0,0.88516033]
[1742127279483,1.871e-05,82842.0,82841.0,0.98280033]
[1742127279886,1.871e-05,82842.0,82841.0,1.03280033]
[1742127280047,1.871e-05,82842.0,82841.0,0.98280033]
[1742127280243,1.871e-05,82842.0,82841.0,1.03280033]
[1742127280763,1.871e-05,82842.0,82841.0,0.96720142]
[1742127280977,1.871e-05,82842.0,82841.0,0.86956142]
[1742127281571,1.871e-05,82842.0,82841.0,0.81956142]
[1742127281773,1.871e-05,82842.0,82841.0,0.86956142]
[1742127281977,1.871e-05,82842.0,82841.0,0.445997]
[1742127282354,1.871e-05,82842.0,82841.0,0.396697]
[1742127285403,1.871e-05,82842.0,82841.0,0.016]
[1742127285608,1.871e-05,82842.0,82841.0,0.061]
[1742127285821,0.01787622,82842.0,82841.0,0.061]
[1742127285955,0.01787622,82842.0,82841.0,0.066]
[1742127286206,0.01787622,82842.0,82841.0,0.06]
[1742127286606,0.01787622,82842.0,82841.0,0.061]
[1742127287152,0.01787622,82842.0,82841.0,0.064]
[1742127287355,0.01787622,82842.0,82841.0,0.053]
[1742127287555,0.01787622,82842.0,82841.0,0.058]
[1742127287964,0.01787622,82842.0,82841.0,0.063]
[1742127289469,0.00580522,82842.0,82841.0,0.316497]
[1742127289850,1.871e-05,82842.0,82841.0,0.316497]
[1742127290063,0.00587364,82842.0,82841.0,0.316497]
[1742127290314,0.00587364,82842.0,82841.0,0.397597]
[1742127290845,0.01794464,82842.0,82841.0,0.058]
[1742127291089,0.01794464,82842.0,82841.0,0.063]
[1742127291479,0.03686818,82842.0,82841.0,0.063]
[1742127292942,0.33686818,82842.0,82841.0,0.058]
[1742127293769,0.33686818,82842.0,82841.0,0.008]
[1742127293973,0.33686818,82842.0,82841.0,0.053]
[1742127295315,0.33686818,82842.0,82841.0,0.05]
[1742127297478,0.31794464,82842.0,82841.0,0.05]
[1742127300501,0.00587364,82842.0,82841.0,0.055]
[1742127300701,0.00587364,82842.0,82841.0,0.376726]
[1742127300928,0.02479736,82842.0,82841.0,0.388797]
[1742127301196,0.02479736,82842.0,82841.0,0.437997]
[1742127301364,0.02479736,82842.0,82841.0,0.4383352]
[1742127301571,0.01894243,82842.0,82841.0,0.4383352]
[1742127301973,1.871e-05,82842.0,82841.0,0.4383352]
[1742127302177,1.871e-05,82842.0,82841.0,0.4393352]
[1742127302791,1.871e-05,82842.0,82841.0,0.4423352]
[1742127303279,1.871e-05,82842.0,82841.0,0.4473352]
[1742127303617,1.871e-05,82842.0,82841.0,0.86193487]
[1742127303825,1.871e-05,82842.0,82841.0,0.87147572]
[1742127304018,1.871e-05,82842.0,82841.0,0.90008072]
[1742127304625,1.871e-05,82842.0,82841.0,0.89608072]
[1742127305021,1.871e-05,82842.0,82841.0,2.70108072]
[1742127305287,0.0001692,82851.0,82850.0,0.30847]
[1742127305492,0.00029363,82851.0,82850.0,0.58545]
[1742127306390,0.00029363,82851.0,82850.0,0.59999085]
[1742127306589,0.00029363,82851.0,82850.0,0.60599085]
[1742127307127,8.3e-07,82852.0,82851.0,0.43160985]
[1742127307338,8.3e-07,82852.0,82851.0,0.55710985]
[1742127307764,8.3e-07,82852.0,82851.0,0.57233343]
[1742127308499,8.3e-07,82852.0,82851.0,0.57833343]
[1742127308756,8.3e-07,82852.0,82851.0,0.60090478]
[1742127308939,8.3e-07,82852.0,82851.0,0.60690478]
[1742127309350,8.3e-07,82852.0,82851.0,2.52150445]
[1742127309556,0.0003386,82864.0,82863.0,0.30343]
[1742127309883,0.0003386,82864.0,82863.0,0.86307052]
[1742127310075,6e-07,82864.0,82863.0,0.86307052]
[1742127310976,6e-07,82864.0,82863.0,1.16307052]
[1742127311332,6e-07,82864.0,82863.0,0.99092967]
[1742127311521,6e-07,82864.0,82863.0,0.99592967]
[1742127311835,6e-07,82864.0,82863.0,1.00192967]
[1742127312030,6e-07,82864.0,82863.0,1.00792967]
[1742127312673,6e-07,82864.0,82863.0,0.94592967]
[1742127312871,6e-07,82864.0,82863.0,0.99592967]
[1742127313049,6e-07,82864.0,82863.0,1.01579081]
[1742127313252,6e-07,82864.0,82863.0,0.96579081]
[1742127313455,6e-07,82864.0,82863.0,1.01579081]
[1742127313825,6e-07,82864.0,82863.0,0.86839081]
[1742127314019,6e-07,82864.0,82863.0,0.81839081]
[1742127314223,6e-07,82864.0,82863.0,0.86839081]
[1742127314982,0.20800756,82880.0,82879.0,0.055]
[1742127315335,0.00689451,82880.0,82879.0,0.055]
[1742127315831,0.01895951,82880.0,82879.0,0.055]
[1742127316033,0.00689451,82880.0,82879.0,0.055]
[1742127316233,0.00689451,82880.0,82879.0,0.057]
[1742127316540,0.01895951,82880.0,82879.0,0.057]
[1742127317051,0.01895951,82880.0,82879.0,0.052]
[1742127317362,0.36735951,82880.0,82879.0,0.002]
[1742127317572,0.40295951,82880.0,82879.0,0.002]
[1742127318277,0.553438,82860.0,82859.0,0.05]
[1742127318477,0.553438,82860.0,82852.0,0.005]
[1742127318478,0.253451,82856.0,82855.0,0.055]
[1742127318684,0.55346,82853.0,82852.0,0.05]
[1742127318885,0.55346,82853.0,82852.0,0.055]
[1742127319089,0.5598881,82853.0,82852.0,0.055]
[1742127319440,0.0064281,82853.0,82852.0,0.067069]
[1742127319683,0.01459768,82865.0,82864.0,0.05]
[1742127319891,0.33311266,82865.0,82864.0,0.05]
[1742127320161,0.31851498,82865.0,82864.0,0.05]
[1742127320378,0.30644798,82865.0,82864.0,0.05]
[1742127320750,0.32536715,82865.0,82864.0,0.05]
[1742127320950,0.02536715,82865.0,82864.0,0.067067]
[1742127321709,0.02536715,82865.0,82864.0,0.055]
[1742127322070,0.02636715,82865.0,82864.0,0.055]
[1742127322207,0.02636715,82865.0,82864.0,0.067067]
[1742127322413,0.02536715,82865.0,82864.0,0.067067]
[1742127322622,0.02536715,82865.0,82864.0,0.068067]
[1742127323001,0.253385,82878.0,82877.0,0.05]
[1742127323120,0.25379966,82878.0,82877.0,0.05]
[1742127323322,0.56021271,82878.0,82877.0,0.05]
[1742127323568,0.5791287,82878.0,82877.0,0.05]
[1742127324308,0.5791287,82878.0,82869.0,0.055]
[1742127324309,0.253408,82870.0,82869.0,0.055]
[1742127324483,0.253423,82865.0,82864.0,0.051]
[1742127324684,0.25981571,82865.0,82864.0,0.051]
[1742127324850,0.25981571,82865.0,82864.0,0.05]
[1742127325060,0.253436,82861.0,82860.0,0.055]
[1742127325303,0.012067,82864.0,82863.0,0.05]
[1742127325693,0.012067,82864.0,82863.0,0.055]
[1742127326319,0.012067,82868.0,82863.0,0.055]
[1742127326560,0.241339,82871.0,82869.0,0.05]
[1742127326741,0.553402,82872.0,82871.0,0.005]
[1742127327041,0.553402,82872.0,82871.0,0.05]
[1742127327337,0.553402,82872.0,82871.0,0.055]
[1742127327977,0.553402,82872.0,82871.0,0.05]
[1742127328258,0.553402,82872.0,82871.0,0.055]
[1742127328811,0.001,82872.0,82871.0,0.308404]
[1742127329638,0.15975966,82878.0,82871.0,0.308404]
[1742127329833,0.15975966,82878.0,82872.0,0.241333]
[1742127329834,0.241323,82877.0,82872.0,0.241333]
[1742127330034,0.241323,82877.0,82876.0,0.05]
[1742127330237,0.14769466,82878.0,82876.0,0.055]
[1742127330472,0.30041466,82878.0,82877.0,0.055]
[1742127331036,0.31247966,82878.0,82877.0,0.055]
[1742127332514,0.30041466,82878.0,82877.0,0.055]
[1742127333300,0.00041466,82878.0,82877.0,0.067066]
[1742127333906,0.01247966,82878.0,82874.0,0.005]
[1742127334242,0.253387,82877.0,82876.0,0.055]
[1742127334426,0.253387,82877.0,82876.0,0.05]
[1742127335045,0.24133,82874.0,82873.0,0.055]
[1742127335268,0.253396,82874.0,82873.0,0.055]
[1742127335566,0.253404,82871.0,82870.0,0.055]
[1742127336310,0.253404,82871.0,82870.0,0.05]
[1742127336509,0.253417,82867.0,82866.0,0.055]
[1742127336710,0.253417,82867.0,82866.0,0.05]
[1742127337375,0.253417,82867.0,82866.0,0.055]
[1742127337761,0.241347,82868.0,82866.0,0.055]
[1742127338095,0.241347,82868.0,82867.0,0.05]
[1742127338348,0.253414,82868.0,82867.0,0.055]
[1742127339393,0.253414,82869.0,82868.0,0.05]
[1742127340689,0.012067,82868.0,82867.0,0.057]
[1742127341094,0.03098449,82868.0,82867.0,0.057]
[1742127341386,0.03098449,82868.0,82867.0,0.055]
[1742127341958,0.012067,82866.0,82865.0,0.005]
[1742127342368,0.253423,82865.0,82864.0,0.005]
[1742127343313,0.253423,82865.0,82864.0,0.05]
[1742127343515,0.012067,82864.0,82863.0,0.05]
[1742127343718,0.312068,82862.0,82861.0,0.05]
[1742127344042,0.253447,82857.0,82856.0,0.055]
[1742127344944,0.27236735,82857.0,82856.0,0.055]
[1742127350436,0.253447,82857.0,82856.0,0.055]
[1742127351200,0.253447,82857.0,82856.0,0.055338]
[1742127351554,0.253447,82857.0,82856.0,0.050338]
[1742127351754,0.253447,82857.0,82856.0,0.000338]
[1742127353289,0.553447,82857.0,82856.0,0.050338]
[1742127353588,0.57236717,82857.0,82856.0,0.000338]
[1742127355382,0.57236717,82857.0,82856.0,0.050338]
[1742127355563,0.57236717,82857.0,82856.0,0.000338]
[1742127355989,0.7403422,82857.0,82856.0,0.000338]
[1742127356187,0.62076717,82857.0,82856.0,0.000338]
[1742127356719,0.601847,82857.0,82856.0,0.000338]
[1742127356909,0.61638785,82857.0,82856.0,1e-06]
[1742127357870,0.61838785,82857.0,82856.0,1e-06]
[1742127358154,0.61638785,82857.0,82856.0,1e-06]
[1742127358736,0.61838785,82857.0,82856.0,1e-06]
[1742127360476,0.66703928,82857.0,82856.0,1e-06]
[1742127360879,0.67371541,82857.0,82856.0,1e-06]
[1742127361131,0.62506398,82857.0,82856.0,1e-06]
[1742127363706,0.92292298,82857.0,82856.0,1e-06]
[1742127363913,0.553494,82842.0,82841.0,0.0028182]
[1742127364130,0.70705553,82842.0,82841.0,0.0028182]
[1742127365273,0.70805553,82842.0,82841.0,0.00294263]
[1742127365648,0.72698009,82842.0,82841.0,0.00294263]
[1742127366258,0.72798009,82842.0,82841.0,0.00294263]
[1742127367854,0.73378996,82842.0,82841.0,0.00294263]
[1742127368026,0.85179091,82842.0,82841.0,0.00294263]
[1742127369413,0.86633176,82842.0,82841.0,6.3e-07]
[1742127370230,0.553551,82823.0,82822.0,0.05]
[1742127370638,0.55992879,82823.0,82822.0,0.05]
[1742127371039,0.312074,82822.0,82821.0,0.0501691]
[1742127371443,0.31844947,82822.0,82821.0,0.0501691]
[1742127372051,0.03737923,82822.0,82821.0,0.0501691]
[1742127372549,0.03737923,82822.0,82821.0,0.0001691]
[1742127372749,0.01844947,82822.0,82821.0,0.0001691]
[1742127372958,0.01844947,82822.0,82821.0,0.0021691]
[1742127373374,0.09551742,82822.0,82821.0,0.0021691]
[1742127373577,0.11005895,82822.0,82821.0,0.0041691]
[1742127374009,0.11005895,82822.0,82821.0,0.0021691]
[1742127374220,0.11005895,82822.0,82821.0,0.0001691]
[1742127374420,0.11105895,82822.0,82821.0,0.0001691]
[1742127374923,0.11005895,82822.0,82821.0,0.0001691]
[1742127375221,0.11105895,82822.0,82821.0,0.0001691]
[1742127375424,0.11305895,82822.0,82821.0,0.0001691]
[1742127375623,0.11205895,82822.0,82821.0,0.0001691]
[1742127375802,0.11405895,82822.0,82821.0,0.0001691]
[1742127376005,0.13299013,82822.0,82821.0,0.0001691]
[1742127376169,0.05592218,82822.0,82821.0,0.0001691]
[1742127378262,0.05592218,82822.0,82798.0,0.0467004]
[1742127378263,0.553625,82799.0,82798.0,0.0467004]
[1742127378449,0.553625,82799.0,82798.0,0.0967004]
[1742127378651,0.55982792,82799.0,82798.0,0.0967004]
[1742127379076,0.57446084,82799.0,82798.0,0.0467004]
[1742127379496,0.57446084,82799.0,82798.0,0.04982478]
[1742127379701,0.57446084,82799.0,82798.0,0.04682478]
[1742127379901,0.57446084,82799.0,82798.0,0.00012478]
[1742127380529,0.57446084,82799.0,82798.0,0.00412478]
[1742127380716,0.59877618,82799.0,82798.0,0.00412478]
[1742127381275,0.34515118,82799.0,82798.0,0.00012478]
[1742127381481,0.06408563,82799.0,82798.0,0.00012478]
[1742127381826,0.25365,82791.0,82784.0,0.000338]
[1742127382032,0.241577,82789.0,82784.0,0.000338]
[1742127382232,0.253655,82789.0,82784.0,0.000338]
[1742127382429,0.25979431,82789.0,82784.0,0.000338]
[1742127382865,0.27873264,82789.0,82784.0,0.000338]
[1742127383241,0.57873264,82789.0,82784.0,0.000338]
[1742127384454,0.553668,82785.0,82784.0,0.000338]
[1742127384791,0.55975767,82785.0,82784.0,0.000338]
[1742127385811,0.55727767,82785.0,82784.0,0.000338]
[1742127386428,0.70435767,82785.0,82784.0,0.000338]
[1742127386798,0.698268,82785.0,82784.0,0.000338]
[1742127388652,0.241665,82759.0,82758.0,0.0003386]
[1742127388847,0.700828,82759.0,82758.0,0.0003386]
[1742127389158,0.700828,82759.0,82758.0,0.00075316]
[1742127390754,0.701828,82759.0,82758.0,0.00575316]
[1742127391140,0.700828,82759.0,82758.0,0.00075316]
[1742127391339,0.71513354,82759.0,82758.0,0.00075316]
[1742127392432,0.75874999,82759.0,82758.0,0.00075316]
[1742127394720,0.61166999,82759.0,82758.0,0.00075316]
[1742127394883,0.75874999,82759.0,82758.0,0.00075316]
[1742127396524,0.61166999,82759.0,82758.0,0.00075316]
[1742127396725,0.49814023,82759.0,82758.0,0.12635316]
[1742127396923,0.32638854,82759.0,82758.0,0.12635316]
[1742127398061,0.32638854,82759.0,82758.0,0.12735316]
[1742127400150,0.312083,82759.0,82758.0,0.12735316]
[1742127401463,0.33102623,82759.0,82758.0,0.12735316]
[1742127403233,0.33102623,82759.0,82758.0,0.07795316]
[1742127403993,0.33102623,82759.0,82758.0,0.00175316]
[1742127406422,0.312083,82759.0,82758.0,0.00175316]
[1742127407239,0.43165803,82759.0,82758.0,0.00175316]
[1742127408273,0.312083,82759.0,82758.0,0.00175316]
[1742127408910,0.32762385,82759.0,82758.0,0.00175316]
[1742127409168,0.32762385,82759.0,82758.0,0.00075316]
[1742127409493,0.32862385,82759.0,82758.0,0.00075316]
[1742127409704,0.32762385,82759.0,82758.0,0.00075316]
[1742127409894,0.459123,82759.0,82758.0,0.00075316]
[1742127410103,0.465123,82759.0,82758.0,0.00075316]
[1742127410712,0.465123,82759.0,82747.0,0.082]
[1742127410713,0.553781,82748.0,82747.0,0.07555316]
[1742127410906,0.553781,82748.0,82747.0,0.07567742]
[1742127411127,1.321381,82748.0,82747.0,0.07567742]
[1742127411683,1.468421,82748.0,82747.0,0.07567742]
[1742127411881,1.079684,82748.0,82747.0,0.07567742]
[1742127412058,1.226724,82748.0,82747.0,0.07567742]
[1742127412745,0.012084,82752.0,82747.0,0.07567742]
[1742127412746,0.06739218,82764.0,82753.0,0.24168]
[1742127412952,0.06739218,82764.0,82762.0,0.241655]
[1742127413172,0.06739218,82764.0,82754.0,0.0484]
[1742127413375,0.241642,82767.0,82758.0,0.012083]
[1742127413580,0.3,82766.0,82758.0,0.012083]
[1742127413786,0.3,82766.0,82763.0,0.082]
[1742127414205,0.3,82766.0,82764.0,0.241648]
[1742127414378,0.012081,82769.0,82764.0,0.241648]
[1742127414577,0.312081,82769.0,82764.0,0.241648]
[1742127414819,0.553719,82769.0,82763.0,0.321651]
[1742127414956,0.3,82769.0,82767.0,0.241641]
[1742127415162,0.01894206,82768.0,82764.0,0.239648]
[1742127415378,0.01894206,82768.0,82767.0,0.241642]
[1742127416494,0.012082,82765.0,82758.0,0.001]
[1742127416694,0.3,82764.0,82759.0,0.241665]
[1742127416930,0.012082,82762.0,82756.0,0.012083]
[1742127417144,0.541653,82764.0,82758.0,0.082]
[1742127417351,0.3,82764.0,82763.0,0.012082]
[1742127417556,0.0003384,82773.0,82766.0,0.012082]
[1742127417557,0.02449996,82772.0,82766.0,0.012082]
[1742127417757,0.32679917,82771.0,82765.0,0.241646]
[1742127417965,0.553713,82771.0,82765.0,0.253728]
[1742127418273,0.56808053,82771.0,82767.0,0.001]
[1742127418525,0.32644853,82771.0,82766.0,0.253724]
[1742127418692,0.3,82769.0,82766.0,0.012082]
[1742127418914,0.541638,82769.0,82764.0,0.012082]
[1742127419210,0.3,82769.0,82764.0,0.253731]
[1742127419404,0.3,82769.0,82765.0,0.241646]
[1742127419625,0.3,82769.0,82765.0,0.253728]
[1742127419805,0.32644853,82771.0,82766.0,0.241643]
[1742127420111,0.56808053,82771.0,82766.0,0.242643]
[1742127420307,0.3,82771.0,82768.0,0.253718]
[1742127420514,0.0003384,82773.0,82772.0,0.299408]
[1742127421278,0.0003384,82773.0,82772.0,0.382208]
[1742127421777,0.76756,82800.0,82798.0,0.0828]
[1742127422214,0.76756,82800.0,82799.0,0.012077]
[1742127422420,0.76756,82800.0,82799.0,0.253625]
[1742127422824,0.76756,82800.0,82799.0,0.012077]
[1742127423054,0.3,82799.0,82798.0,0.0828]
[1742127423454,0.76797456,82800.0,82798.0,0.0828]
[1742127423629,0.78005156,82800.0,82799.0,0.001]
[1742127423837,1.02159956,82800.0,82799.0,0.001]
[1742127425318,1.02159956,82800.0,82799.0,0.002]
[1742127425319,1.32159956,82800.0,82799.0,0.002]
[1742127425540,1.34053421,82800.0,82799.0,0.002]
[1742127425734,1.34053421,82800.0,82799.0,0.001]
[1742127425914,1.35507506,82800.0,82799.0,0.001]
[1742127426754,0.253695,82776.0,82775.0,0.0457]
[1742127426927,0.241612,82778.0,82775.0,0.0457]
[1742127428193,0.241577,82789.0,82784.0,0.012079]
[1742127428396,0.241577,82789.0,82784.0,0.253669]
[1742127428562,0.312078,82790.0,82784.0,0.253669]
[1742127428954,0.312078,82790.0,82785.0,0.012079]
[1742127429357,0.253655,82789.0,82784.0,0.24159]
[1742127429806,0.253662,82788.0,82783.0,0.012079]
[1742127431135,0.01893703,82787.0,82784.0,0.012079]
[1742127431289,0.01893703,82787.0,82783.0,0.253672]
[1742127431489,0.01893703,82787.0,82784.0,0.24159]
[1742127432017,0.01893703,82787.0,82783.0,0.254672]
[1742127432371,0.01893703,82787.0,82783.0,0.253672]
[1742127432577,0.01208,82779.0,82769.0,0.012081]
[1742127432899,0.01208,82776.0,82768.0,0.253719]
[1742127433335,0.01208,82776.0,82773.0,0.0001692]
[1742127434579,0.3,82781.0,82775.0,0.299397]
[1742127434781,0.3,82781.0,82780.0,0.01208]
[1742127435523,0.3,82791.0,82787.0,0.012079]
[1742127435734,0.158957,82796.0,82786.0,0.241584]
[1742127435735,0.253619,82802.0,82796.0,0.012077]
[1742127435941,0.02455824,82802.0,82799.0,0.241548]
[1742127436374,0.02455824,82802.0,82798.0,0.012077]
[1742127436577,0.30075296,82800.0,82797.0,0.287451]
[1742127436751,0.55437696,82800.0,82797.0,0.0459]
[1742127437430,0.57331149,82800.0,82797.0,0.0459]
[1742127437958,0.01968749,82800.0,82797.0,0.0459]
[1742127438156,0.01968749,82800.0,82799.0,0.012077]
[1742127438357,0.01968749,82800.0,82799.0,0.013077]
[1742127438766,0.01968749,82800.0,82798.0,0.0776]
[1742127438919,0.26123549,82800.0,82798.0,0.0776]
[1742127439120,0.01968749,82800.0,82798.0,0.331228]
[1742127439304,0.01968749,82800.0,82799.0,0.012077]
[1742127439724,0.01968749,82800.0,82799.0,0.013077]
[1742127440724,0.00075296,82800.0,82799.0,0.013077]
[1742127440932,0.00075296,82800.0,82799.0,0.001]
[1742127441136,0.31282996,82800.0,82799.0,0.001]
[1742127442040,0.012077,82800.0,82799.0,0.002]
[1742127442428,0.012077,82800.0,82799.0,0.001]
[1742127442634,0.241561,82795.0,82790.0,0.241573]
[1742127442843,0.253639,82795.0,82789.0,0.012078]
[1742127443044,0.253647,82793.0,82786.0,0.012079]
[1742127443435,0.24157,82792.0,82785.0,0.241588]
[1742127443933,0.253656,82789.0,82783.0,0.241594]
[1742127444137,0.241587,82786.0,82782.0,0.0776]
[1742127444340,0.012079,82787.0,82783.0,0.241593]
[1742127445398,0.012079,82787.0,82783.0,0.242593]
[1742127445597,0.253664,82787.0,82783.0,0.001]
[1742127445803,0.241591,82785.0,82783.0,0.001]
[1742127446059,0.253668,82786.0,82783.0,0.001]
[1742127446275,0.253668,82786.0,82783.0,0.0011691]
[1742127446498,0.241589,82786.0,82783.0,0.0011691]
[1742127447556,0.012079,82787.0,82783.0,0.2427631]
[1742127447714,0.012079,82787.0,82783.0,0.2447631]
[1742127447915,0.012079,82787.0,82783.0,0.2437631]
[1742127448118,0.012079,82787.0,82783.0,0.2447631]
[1742127448346,0.012079,82787.0,82783.0,0.2427631]
[1742127448541,0.012079,82787.0,82783.0,0.2437631]
[1742127448805,0.26050802,82791.0,82785.0,0.253668]
[1742127448945,0.012076,82804.0,82798.0,0.24155]
[1742127449167,0.012076,82804.0,82799.0,0.0451]
[1742127449168,0.241541,82802.0,82799.0,0.0451]
[1742127449359,0.1468,82805.0,82799.0,0.057177]
[1742127449562,0.253589,82811.0,82799.0,0.137377]
[1742127449767,0.012075,82811.0,82799.0,0.137377]
[1742127449970,0.241486,82821.0,82799.0,0.55318435]
[1742127449971,0.172717,82820.0,82799.0,0.55318435]
[1742127450193,0.172717,82820.0,82799.0,0.55197667]
[1742127450194,0.241505,82814.0,82799.0,0.55197667]
[1742127451494,0.26590298,82817.0,82798.0,0.001]
[1742127451495,0.012077,82799.0,82798.0,0.001]
[1742127451791,0.253644,82793.0,82792.0,0.0802]
[1742127451945,0.012078,82792.0,82791.0,0.41459967]
[1742127454619,0.010078,82792.0,82791.0,0.41459967]
[1742127454828,0.010078,82792.0,82791.0,0.41559967]
[1742127455349,0.010078,82792.0,82791.0,0.41759967]
[1742127455972,0.010078,82792.0,82791.0,0.003]
[1742127456503,0.010078,82792.0,82791.0,0.001]
[1742127456504,0.02380794,82792.0,82791.0,0.001]
[1742127457128,0.02380794,82792.0,82783.0,0.0001691]
[1742127457339,0.012079,82784.0,82783.0,0.0001691]
[1742127457540,0.253671,82784.0,82783.0,0.0001691]
[1742127458104,0.27260823,82784.0,82783.0,0.0001691]
[1742127459090,0.253671,82784.0,82783.0,0.0001691]
[1742127459227,0.400391,82784.0,82783.0,0.0031691]
[1742127459639,0.700391,82784.0,82783.0,0.0031691]
[1742127459888,0.700391,82784.0,82783.0,0.0001691]
[1742127460091,1.467671,82784.0,82783.0,0.0001691]
[1742127460498,1.467671,82784.0,82783.0,0.0021691]
[1742127460697,1.48221185,82784.0,82783.0,1e-07]
[1742127460898,0.553702,82774.0,82773.0,0.0001692]
[1742127462027,0.57264468,82774.0,82773.0,0.0001692]
[1742127462235,0.57264468,82774.0,82773.0,0.00158376]
[1742127462604,0.57264468,82774.0,82773.0,0.00058376]
[1742127463132,0.58818553,82774.0,82773.0,0.00058376]
[1742127463330,0.56924285,82774.0,82773.0,0.00058376]
[1742127463904,0.57024285,82774.0,82773.0,0.00058376]
[1742127464611,0.58876898,82774.0,82773.0,0.00058376]
[1742127464827,0.57024285,82774.0,82773.0,0.00058376]
[1742127465030,0.012084,82751.0,82750.0,0.1253]
[1742127465231,0.700492,82751.0,82750.0,0.00012426]
[1742127465950,0.71409832,82751.0,82750.0,0.00012426]
[1742127466351,0.73504531,82751.0,82750.0,0.00012426]
[1742127467051,0.58832531,82751.0,82750.0,0.00012426]
[1742127467258,0.73704531,82751.0,82750.0,0.00012426]
[1742127470611,0.75949334,82751.0,82750.0,0.00012426]
[1742127471021,0.74054635,82751.0,82750.0,0.00012426]
[1742127472554,0.74054635,82751.0,82750.0,0.00029336]
[1742127472955,0.241735,82735.0,82731.0,0.04446996]
[1742127473265,0.253821,82735.0,82731.0,0.04459456]
[1742127473458,0.012087,82732.0,82731.0,0.04459456]
[1742127473660,0.253831,82732.0,82731.0,0.04459456]
[1742127474235,0.553831,82732.0,82731.0,0.0001246]
[1742127474414,0.553831,82732.0,82731.0,0.0021246]
[1742127474845,0.553831,82732.0,82731.0,0.0001246]
[1742127475094,0.553831,82732.0,82731.0,0.0051246]
[1742127475279,0.553831,82732.0,82731.0,0.0021246]
[1742127475775,0.57278079,82732.0,82731.0,0.0001246]
[1742127476182,0.01894979,82732.0,82731.0,0.0001246]
[1742127476382,0.27278079,82732.0,82731.0,0.0001246]
[1742127477723,0.71950079,82732.0,82731.0,0.0001246]
[1742127478493,0.700551,82732.0,82731.0,0.0001246]
[1742127478721,0.84406686,82732.0,82731.0,0.0001246]
[1742127478947,0.72449183,82732.0,82731.0,0.0001246]
[1742127480643,0.72749183,82732.0,82731.0,0.0001246]
[1742127481031,1.49529183,82732.0,82731.0,0.0001246]
[1742127481325,1.49829183,82732.0,82731.0,0.0001246]
[1742127481754,1.51724282,82732.0,82731.0,0.0001246]
[1742127482118,0.81669182,82732.0,82731.0,0.0001246]
[1742127482474,0.80483799,82732.0,82731.0,0.0471246]
[1742127482705,0.80483799,82732.0,82731.0,0.0001246]
[1742127482839,0.80183799,82732.0,82731.0,0.0001246]
[1742127483212,0.80283799,82732.0,82731.0,0.0001246]
[1742127483426,0.79983799,82732.0,82731.0,0.0001246]
[1742127483798,0.80183799,82732.0,82731.0,0.0001246]